fUST/lending_fUST_20250619
["ID","MTS","AMOUNT","RATE_DAILY","PERIOD"]
[366496878,1750290648917,-460.0,0.00022465,6]
[366496879,1750290648927,-138679.47418636,0.000239,2]
[366496880,1750290648937,-151.0,0.000239,7]
[366496881,1750290648947,-151.0,0.000239,8]
[366496882,1750290648957,-1000.0,0.000239,5]
[366496883,1750290648966,-1000.0,0.000239,2]
[366496884,1750290648976,-600.0,0.00023904,2]
[366496885,1750290648986,-207.09494989,0.0002391,2]
[366496886,1750290648995,-617186.15199545,0.00023916,4]
[366496887,1750290649007,-1794.75936885,0.00023916,4]
[366496888,1750290649019,-351.59094771,0.00023916,4]
[366496889,1750290649032,-8321.80607861,0.00023916,4]
[366496890,1750290649044,-1641.6990737,0.00023916,4]
[366496891,1750290661520,150.0,0.00018316,2]
[366496892,1750290735670,150.0,0.00018308,2]
[366496893,1750290807565,150.0,0.00018284,2]
[366496894,1750290880280,150.0,0.00018344,2]
[366496895,1750290915279,5000.0,0.0001911,2]
[366496896,1750290956744,159.55,0.0001834,2]
[366496897,1750291039647,157.52,0.00018287,2]
[366496898,1750291120263,155.51,0.00018282,2]
[366496900,1750291198448,153.53,0.00018352,2]
[366496901,1750291278739,151.58,0.00018304,2]
[366496902,1750291387407,150.0,0.00018292,2]
[366496904,1750291468000,150.0,0.00018314,2]
[366496905,1750291546531,150.0,0.00018377,2]
[366496906,1750291593116,-291.66,0.00019252,2]
[366496907,1750291593140,-437.49,0.00020127,2]
[366496908,1750291593161,-433.2578762,0.00020789,2]
[366496909,1750291593183,-268.6843619,0.00020976,2]
[366496910,1750291593206,-583.32,0.00021002,2]
[366496911,1750291593227,-150.0,0.00021816,2]
[366496912,1750291593249,-169.49605388,0.00021817,2]
[366496913,1750291593272,-729.15,0.00021877,2]
[366496914,1750291593302,-255.79008663,0.000219,6]
[366496915,1750291593324,-300.0,0.0002191,2]
[366496916,1750291593346,-300.0,0.0002191,2]
[366496917,1750291593368,-300.0,0.00021911,2]
[366496918,1750291593389,-300.0,0.00021911,2]
[366496919,1750291593411,-1200.0,0.00021911,2]
[366496920,1750291593434,-500.0,0.00021911,2]
[366496921,1750291593456,-385.08409743,0.00021911,2]
[366496922,1750291593478,-346.275,0.00021911,2]
[366496923,1750291593501,-500.0,0.00021911,2]
[366496924,1750291593526,-500.0,0.00021911,2]
[366496925,1750291593549,-340.9707566,0.00021911,2]
[366496926,1750291593573,-527.93418379,0.00021911,2]
[366496927,1750291593597,-500.0,0.00021911,2]
[366496928,1750291593621,-500.0,0.00021911,2]
[366496929,1750291593645,-500.0,0.00021911,2]
[366496930,1750291593668,-500.0,0.00021911,2]
[366496931,1750291593692,-354.35687256,0.00021911,2]
[366496932,1750291593715,-500.0,0.00021911,2]
[366496933,1750291593737,-500.0,0.00021911,2]
[366496934,1750291593761,-449.72324898,0.00021911,2]
[366496935,1750291593782,-500.0,0.00021917,6]
[366496936,1750291593805,-430.0,0.00021917,6]
[366496937,1750291593826,-460.0,0.00021917,6]
[366496938,1750291593847,-447.11844727,0.00021917,6]
[366496939,1750291593869,-106.93563676,0.00021917,6]
[366496940,1750291624802,150.0,0.00018298,2]
[366496941,1750291633148,-248.51,0.0001917,2]
[366496942,1750291633174,-372.76,0.00020041,2]
[366496943,1750291633203,-497.02,0.00020912,2]
[366496944,1750291633227,-300.0,0.00021078,2]
[366496945,1750291633250,-24900.0,0.00021079,2]
[366496946,1750291633275,-621.27,0.00021784,2]
[366496947,1750291633297,-1016.45,0.00021907,3]
[366496948,1750291633320,-508.22,0.00021907,3]
[366496949,1750291633348,-254.11,0.00021907,3]
[366496950,1750291633373,-323.06436324,0.00021917,6]
[366496951,1750291633396,-350.21144787,0.00021917,6]
[366496952,1750291633417,-291.64743689,0.00021917,6]
[366496953,1750291633440,-430.0,0.00021917,6]
[366496954,1750291633462,-460.0,0.00021917,6]
[366496955,1750291633485,-460.0,0.00021917,6]
[366496956,1750291633507,-400.92467331,0.00021917,6]
[366496957,1750291633738,-460.0,0.00021917,6]
[366496958,1750291633761,-400.0,0.00021917,6]
[366496959,1750291633785,-400.0,0.00021917,6]
[366496960,1750291633808,-308.24959544,0.00021917,6]
[366496961,1750291633836,-500.0,0.00021917,6]
[366496962,1750291633859,-430.0,0.00021917,6]
[366496963,1750291633882,-456.53913042,0.00021917,6]
[366496964,1750291633908,-430.0,0.00021917,6]
[366496965,1750291633931,-460.0,0.00021917,6]
[366496966,1750291633954,-460.0,0.00021917,6]
[366496967,1750291633977,-430.0,0.00021917,6]
[366496968,1750291633999,-400.0,0.00021917,6]
[366496969,1750291634023,-430.0,0.00021917,6]
[366496970,1750291634045,-431.60979836,0.00021917,6]
[366496971,1750291634067,-420.0,0.00021917,6]
[366496972,1750291634091,-430.0,0.00021917,6]
[366496973,1750291634114,-420.0,0.00021917,6]
[366496974,1750291634138,-430.0,0.00021917,6]
[366496975,1750291634162,-430.0,0.00021917,6]
[366496976,1750291634186,-484.5127554,0.00021917,6]
[366496977,1750291634211,-460.0,0.00021917,6]
[366496978,1750291634234,-460.0,0.00021917,6]
[366496979,1750291634257,-430.0,0.00021917,6]
[366496980,1750291634280,-430.0,0.00021917,6]
[366496981,1750291634302,-430.0,0.00021917,6]
[366496982,1750291634327,-460.0,0.00021917,6]
[366496983,1750291634351,-430.0,0.00021917,6]
[366496984,1750291634375,-370.0,0.00021917,6]
[366496985,1750291634399,-460.0,0.00021917,6]
[366496986,1750291634422,-430.0,0.00021917,6]
[366496987,1750291634445,-420.0,0.00021917,6]
[366496988,1750291634467,-430.0,0.00021917,6]
[366496989,1750291634490,-440.0,0.00021917,6]
[366496990,1750291634514,-460.0,0.00021917,6]
[366496991,1750291634537,-460.0,0.00021917,6]
[366496992,1750291634562,-430.0,0.00021917,6]
[366496993,1750291634588,-430.0,0.00021917,6]
[366496994,1750291634612,-490.0,0.00021917,6]
[366496995,1750291634637,-380.0,0.00021917,6]
[366496996,1750291634659,-430.0,0.00021917,6]
[366496997,1750291634682,-440.0,0.00021917,6]
[366496998,1750291634706,-440.0,0.00021917,6]
[366496999,1750291634729,-430.0,0.00021917,6]
[366497000,1750291634753,-430.0,0.00021917,6]
[366497001,1750291634776,-460.0,0.00021917,6]
[366497002,1750291634800,-430.0,0.00021917,6]
[366497003,1750291634827,-430.0,0.00021917,6]
[366497004,1750291634851,-460.0,0.00021917,6]
[366497005,1750291634877,-400.96118683,0.00021917,6]
[366497006,1750291634903,-500.0,0.00021917,6]
[366497007,1750291634927,-213.2477313,0.00021917,6]
[366497008,1750291634950,-339.183922,0.00021917,6]
[366497009,1750291634974,-460.0,0.00021917,6]
[366497010,1750291634997,-512.01,0.00021917,6]
[366497011,1750291635023,-460.0,0.00021917,6]
[366497012,1750291635047,-460.0,0.00021917,6]
[366497013,1750291635070,-460.0,0.00021917,6]
[366497014,1750291635094,-460.0,0.00021917,6]
[366497015,1750291635118,-390.0,0.00021917,6]
[366497016,1750291635141,-460.0,0.00021917,6]
[366497017,1750291635165,-460.0,0.00021917,6]
[366497018,1750291635188,-430.0,0.00021917,6]
[366497019,1750291635211,-475.47524009,0.00021917,6]
[366497020,1750291635236,-430.0,0.00021917,6]
[366497021,1750291635259,-430.0,0.00021917,6]
[366497022,1750291635282,-430.0,0.00021917,6]
[366497023,1750291635305,-500.0,0.00021917,6]
[366497024,1750291635328,-460.0,0.00021917,6]
[366497025,1750291635483,-500.0,0.00021917,6]
[366497026,1750291635508,-300.0,0.00021917,6]
[366497027,1750291635530,-490.0,0.00021917,6]
[366497028,1750291635552,-430.0,0.00021917,6]
[366497029,1750291635574,-540.0,0.00021917,6]
[366497030,1750291635596,-490.0,0.00021917,6]
[366497031,1750291635618,-460.0,0.00021917,6]
[366497032,1750291635640,-490.0,0.00021917,6]
[366497033,1750291635662,-366.16807931,0.00021917,6]
[366497034,1750291635684,-490.0,0.00021917,6]
[366497035,1750291635706,-460.0,0.00021917,6]
[366497036,1750291635728,-440.0,0.00021917,6]
[366497037,1750291635750,-430.0,0.00021917,6]
[366497038,1750291635772,-490.0,0.00021917,6]
[366497039,1750291635794,-490.0,0.00021917,6]
[366497040,1750291635819,-460.0,0.00021917,6]
[366497041,1750291635842,-460.0,0.00021917,6]
[366497042,1750291635866,-460.0,0.00021917,6]
[366497043,1750291635892,-460.0,0.00021917,6]
[366497044,1750291635914,-460.0,0.00021917,6]
[366497045,1750291635939,-589.5561649,0.00021917,6]
[366497046,1750291635962,-460.0,0.00021917,6]
[366497047,1750291635987,-490.0,0.00021917,6]
[366497048,1750291636011,-460.0,0.00021917,6]
[366497049,1750291636034,-324.80810926,0.00021917,6]
[366497050,1750291636057,-440.0,0.00021917,6]
[366497051,1750291636081,-460.0,0.00021917,6]
[366497052,1750291636104,-550.9032418,0.00021917,6]
[366497053,1750291636127,-450.0,0.00021917,6]
[366497054,1750291636150,-440.0,0.00021917,6]
[366497055,1750291636173,-157.24,0.00021917,2]
[366497056,1750291636196,-514.96000003,0.00021917,6]
[366497057,1750291636220,-430.0,0.00021917,6]
[366497058,1750291636243,-460.0,0.00021917,6]
[366497059,1750291636265,-407.76320901,0.00021917,6]
[366497060,1750291636287,-440.0,0.00021917,6]
[366497061,1750291636309,-450.0,0.00021917,6]
[366497062,1750291636331,-440.0,0.00021917,6]
[366497063,1750291636354,-450.0,0.00021917,6]
[366497064,1750291636376,-430.0,0.00021917,6]
[366497065,1750291636400,-430.0,0.00021917,6]
[366497066,1750291636422,-460.0,0.00021917,6]
[366497067,1750291636445,-391.40508588,0.00021917,6]
[366497068,1750291636467,-440.0,0.00021917,6]
[366497069,1750291636491,-460.0,0.00021917,6]
[366497070,1750291636514,-153.37047306,0.00021917,6]
[366497071,1750291636538,-396.67448792,0.00021917,6]
[366497072,1750291636563,-460.0,0.00021917,6]
[366497073,1750291636587,-430.0,0.00021917,6]
[366497074,1750291636611,-440.0,0.00021917,6]
[366497075,1750291636633,-440.0,0.00021917,6]
[366497076,1750291636657,-400.0,0.00021917,6]
[366497077,1750291636680,-184.88383204,0.00021917,6]
[366497078,1750291636703,-460.0,0.00021917,6]
[366497079,1750291636727,-460.0,0.00021917,6]
[366497080,1750291636753,-504.51640924,0.00021917,6]
[366497081,1750291636777,-430.0,0.00021917,6]
[366497082,1750291636799,-152.97749869,0.00021917,6]
[366497083,1750291636822,-450.0,0.00021917,6]
[366497084,1750291636845,-440.0,0.00021917,6]
[366497085,1750291636870,-423.64732987,0.00021917,6]
[366497086,1750291636897,-617.51,0.00021917,6]
[366497087,1750291636921,-440.0,0.00021917,6]
[366497088,1750291636946,-430.0,0.00021917,6]
[366497089,1750291636970,-460.0,0.00021917,6]
[366497090,1750291636993,-430.0,0.00021917,6]
[366497091,1750291637016,-430.0,0.00021917,6]
[366497092,1750291637039,-400.0,0.00021917,6]
[366497093,1750291637061,-430.0,0.00021917,6]
[366497094,1750291637085,-431.09031211,0.00021917,6]
[366497095,1750291637108,-430.0,0.00021917,6]
[366497096,1750291637131,-427.0,0.00021917,6]
[366497097,1750291637155,-460.0,0.00021917,6]
[366497098,1750291637178,-379.40900658,0.00021917,6]
[366497099,1750291637201,-528.26599084,0.00021917,6]
[366497100,1750291637226,-430.0,0.00021917,6]
[366497101,1750291637248,-430.0,0.00021917,6]
[366497102,1750291637271,-430.0,0.00021917,6]
[366497103,1750291637294,-430.0,0.00021917,6]
[366497104,1750291637317,-440.0,0.00021917,6]
[366497105,1750291637343,-440.0,0.00021917,6]
[366497106,1750291637366,-440.0,0.00021917,6]
[366497107,1750291637390,-430.0,0.00021917,6]
[366497108,1750291637414,-440.0,0.00021917,6]
[366497109,1750291637437,-460.0,0.00021917,6]
[366497110,1750291637460,-440.0,0.00021917,6]
[366497111,1750291637485,-430.0,0.00021917,6]
[366497112,1750291637507,-430.0,0.00021917,6]
[366497113,1750291637530,-440.0,0.00021917,6]
[366497114,1750291637553,-460.0,0.00021917,6]
[366497115,1750291637578,-440.0,0.00021917,6]
[366497116,1750291637602,-168.21391806,0.00021917,6]
[366497117,1750291637625,-420.0,0.00021917,6]
[366497118,1750291637648,-430.0,0.00021917,6]
[366497119,1750291637673,-440.0,0.00021917,6]
[366497120,1750291637698,-440.0,0.00021917,6]
[366497121,1750291637721,-460.0,0.00021917,6]
[366497122,1750291637745,-430.0,0.00021917,6]
[366497123,1750291637769,-440.0,0.00021917,6]
[366497124,1750291637792,-490.0,0.00021917,6]
[366497125,1750291637818,-460.0,0.00021917,6]
[366497126,1750291637843,-460.0,0.00021917,6]
[366497127,1750291637868,-244.5649086,0.00021917,6]
[366497128,1750291637891,-460.0,0.00021917,6]
[366497129,1750291637916,-490.0,0.00021917,6]
[366497130,1750291637941,-460.0,0.00021917,6]
[366497131,1750291637966,-430.0,0.00021917,6]
[366497132,1750291637990,-440.0,0.00021917,6]
[366497133,1750291638015,-460.0,0.00021917,6]
[366497134,1750291638039,-430.0,0.00021917,6]
[366497135,1750291638062,-460.0,0.00021917,6]
[366497136,1750291638088,-360.0,0.00021917,6]
[366497137,1750291638113,-440.0,0.00021917,6]
[366497138,1750291638138,-460.0,0.00021917,6]
[366497139,1750291638163,-460.0,0.00021917,6]
[366497140,1750291638187,-586.88334488,0.00021917,6]
[366497141,1750291638213,-460.0,0.00021917,6]
[366497142,1750291638236,-460.0,0.00021917,6]
[366497143,1750291638261,-440.0,0.00021917,6]
[366497144,1750291638285,-460.0,0.00021917,6]
[366497145,1750291638308,-430.0,0.00021917,6]
[366497146,1750291638333,-460.0,0.00021917,6]
[366497147,1750291638357,-460.0,0.00021917,6]
[366497148,1750291638386,-460.0,0.00021917,6]
[366497149,1750291638411,-430.0,0.00021917,6]
[366497150,1750291638441,-460.0,0.00021917,6]
[366497151,1750291638466,-400.0,0.00021917,6]
[366497152,1750291638490,-460.0,0.00021917,6]
[366497153,1750291638515,-3150.19,0.00021917,6]
[366497154,1750291638538,-430.0,0.00021917,6]
[366497155,1750291638561,-430.0,0.00021917,6]
[366497156,1750291638585,-452.91587572,0.00021917,6]
[366497157,1750291638609,-1431.39,0.00021917,6]
[366497158,1750291638631,-430.0,0.00021917,6]
[366497159,1750291638658,-1938.08,0.00021917,6]
[366497160,1750291638803,-460.0,0.00021917,6]
[366497161,1750291638834,-460.0,0.00021917,6]
[366497162,1750291638859,-440.0,0.00021917,6]
[366497163,1750291638882,-420.0,0.00021917,6]
[366497164,1750291638906,-440.0,0.00021917,6]
[366497165,1750291638930,-440.0,0.00021917,6]
[366497166,1750291638955,-482.96218221,0.00021917,6]
[366497167,1750291638979,-430.0,0.00021917,6]
[366497168,1750291639004,-188.72126539,0.00021917,6]
[366497169,1750291639028,-430.0,0.00021917,6]
[366497170,1750291639050,-420.0,0.00021917,6]
[366497171,1750291639073,-460.0,0.00021917,6]
[366497172,1750291639097,-460.0,0.00021917,6]
[366497173,1750291639120,-500.0,0.00021917,6]
[366497174,1750291639144,-460.0,0.00021917,6]
[366497175,1750291639168,-460.0,0.00021917,6]
[366497176,1750291639191,-460.0,0.00021917,6]
[366497177,1750291639214,-404.96000628,0.00021917,6]
[366497178,1750291639237,-482.87,0.00021917,6]
[366497179,1750291639260,-430.0,0.00021917,6]
[366497180,1750291639285,-726.5,0.00021917,6]
[366497181,1750291639308,-460.0,0.00021917,6]
[366497182,1750291639333,-400.0,0.00021917,6]
[366497183,1750291639358,-3176.63,0.00021917,6]
[366497184,1750291639382,-460.0,0.00021917,6]
[366497185,1750291639405,-460.0,0.00021917,6]
[366497186,1750291639430,-430.0,0.00021917,6]
[366497187,1750291639453,-460.0,0.00021917,6]
[366497188,1750291639477,-460.0,0.00021917,6]
[366497189,1750291639500,-430.0,0.00021917,6]
[366497190,1750291639524,-420.0,0.00021917,6]
[366497191,1750291639548,-460.0,0.00021917,6]
[366497192,1750291639573,-430.0,0.00021917,6]
[366497193,1750291639599,-916.58,0.00021917,6]
[366497194,1750291639624,-460.0,0.00021917,6]
[366497195,1750291639652,-430.0,0.00021917,6]
[366497196,1750291639676,-654.4,0.00021917,6]
[366497197,1750291639701,-460.0,0.00021917,6]
[366497198,1750291639723,-420.0,0.00021917,6]
[366497199,1750291639747,-460.0,0.00021917,6]
[366497200,1750291639771,-460.0,0.00021917,6]
[366497201,1750291639795,-420.0,0.00021917,6]
[366497202,1750291639823,-460.0,0.00021917,6]
[366497203,1750291639848,-574.440394,0.00021917,6]
[366497204,1750291639872,-430.0,0.00021917,6]
[366497205,1750291639896,-430.0,0.00021917,6]
[366497206,1750291639919,-500.0,0.00021917,6]
[366497207,1750291639942,-500.0,0.00021917,6]
[366497208,1750291639966,-500.0,0.00021917,6]
[366497209,1750291639991,-500.0,0.00021917,6]
[366497210,1750291640013,-460.0,0.00021917,6]
[366497211,1750291640036,-460.0,0.00021917,6]
[366497212,1750291640057,-460.0,0.00021917,6]
[366497213,1750291640081,-1005.1,0.00021917,6]
[366497214,1750291640103,-430.0,0.00021917,6]
[366497215,1750291640124,-460.0,0.00021917,6]
[366497216,1750291640146,-460.0,0.00021917,6]
[366497217,1750291640168,-460.0,0.00021917,6]
[366497218,1750291640190,-952.67,0.00021917,6]
[366497219,1750291640211,-460.0,0.00021917,6]
[366497220,1750291640232,-460.0,0.00021917,6]
[366497221,1750291640254,-430.0,0.00021917,6]
[366497222,1750291640276,-460.0,0.00021917,6]
[366497223,1750291640301,-583.68,0.00021917,6]
[366497224,1750291640326,-460.0,0.00021917,6]
[366497225,1750291640357,-460.0,0.00021917,6]
[366497226,1750291640387,-430.0,0.00021917,6]
[366497227,1750291640412,-460.0,0.00021917,6]
[366497228,1750291640442,-460.0,0.00021917,6]
[366497229,1750291640471,-430.0,0.00021917,6]
[366497230,1750291640499,-430.0,0.00021917,6]
[366497231,1750291640528,-430.0,0.00021917,6]
[366497232,1750291640557,-450.0,0.00021917,6]
[366497233,1750291640585,-505.71,0.00021917,6]
[366497234,1750291640611,-420.0,0.00021917,6]
[366497235,1750291640639,-460.0,0.00021917,6]
[366497236,1750291640668,-460.0,0.00021917,6]
[366497237,1750291640694,-535.76589772,0.00021917,6]
[366497238,1750291640720,-430.0,0.00021917,6]
[366497239,1750291640746,-460.0,0.00021917,6]
[366497240,1750291640774,-450.0,0.00021917,6]
[366497241,1750291640800,-430.0,0.00021917,6]
[366497242,1750291640832,-2642.0,0.00021917,6]
[366497243,1750291640863,-460.0,0.00021917,6]
[366497244,1750291640889,-509.35692007,0.00021917,6]
[366497245,1750291640913,-460.0,0.00021917,6]
[366497246,1750291640938,-460.0,0.00021917,6]
[366497247,1750291640968,-460.0,0.00021917,6]
[366497248,1750291640995,-460.0,0.00021917,6]
[366497249,1750291641020,-460.0,0.00021917,6]
[366497250,1750291641047,-460.0,0.00021917,6]
[366497251,1750291641073,-460.0,0.00021917,6]
[366497252,1750291641099,-460.0,0.00021917,6]
[366497253,1750291641125,-460.0,0.00021917,6]
[366497254,1750291641150,-490.0,0.00021917,6]
[366497255,1750291641175,-460.0,0.00021917,6]
[366497256,1750291641202,-2280.65,0.00021917,6]
[366497257,1750291641228,-310.97566826,0.00021917,6]
[366497258,1750291641253,-757.04,0.00021917,6]
[366497259,1750291641278,-430.0,0.00021917,6]
[366497260,1750291641305,-430.0,0.00021917,6]
[366497261,1750291641332,-460.0,0.00021917,6]
[366497262,1750291641360,-685.79,0.00021917,6]
[366497263,1750291641385,-460.0,0.00021917,6]
[366497264,1750291641410,-460.0,0.00021917,6]
[366497265,1750291641435,-460.0,0.00021917,6]
[366497266,1750291641463,-1832.19,0.00021917,6]
[366497267,1750291641490,-307.84103979,0.00021917,6]
[366497268,1750291641516,-430.0,0.00021917,6]
[366497269,1750291641542,-460.0,0.00021917,6]
[366497270,1750291641568,-430.0,0.00021917,6]
[366497271,1750291641594,-460.0,0.00021917,6]
[366497272,1750291641621,-430.0,0.00021917,6]
[366497273,1750291641648,-460.0,0.00021917,6]
[366497274,1750291641676,-460.0,0.00021917,6]
[366497275,1750291641705,-708.98,0.00021917,6]
[366497276,1750291641733,-460.0,0.00021917,6]
[366497277,1750291641761,-460.0,0.00021917,6]
[366497278,1750291641788,-500.0,0.00021917,6]
[366497279,1750291641819,-1699.78,0.00021917,6]
[366497280,1750291641846,-440.0,0.00021917,6]
[366497281,1750291641874,-580.7,0.00021917,6]
[366497282,1750291641901,-460.0,0.00021917,6]
[366497283,1750291641926,-430.0,0.00021917,6]
[366497284,1750291641954,-248.64760731,0.00021917,6]
[366497285,1750291641982,-179.37225491,0.00021917,6]
[366497287,1750291690085,163.415632,0.00013699,2]
[366497288,1750291704380,150.0,0.00018298,2]
[366497289,1750291769105,-200.41,0.0001917,2]
[366497290,1750291769134,-300.62,0.00020041,2]
[366497291,1750291769162,-400.82,0.00020912,2]
[366497292,1750291769188,-415.18914306,0.00020957,2]
[366497293,1750291782202,150.0,0.00018295,2]
[366497294,1750291804250,1451.0,0.00025169,120]
[366497347,1750291832209,-173.64,0.00019166,2]
[366497349,1750291832219,-260.45,0.00020038,2]
[366497351,1750291832229,-347.27,0.00020909,2]
[366497353,1750291832238,-721.66568124,0.00020957,2]
[366497355,1750291832247,-434.09,0.0002178,2]
[366497357,1750291832257,-327.58820026,0.000219,6]
[366497359,1750291832266,-327.74702767,0.00021916,2]
[366497361,1750291832275,-206.03965251,0.00021916,2]
[366497363,1750291832284,-492.99993457,0.00021916,2]
[366497365,1750291832294,-300.0,0.00021916,2]
[366497367,1750291832303,-280.62774509,0.00021917,6]
[366497369,1750291832313,-460.0,0.00021917,6]
[366497371,1750291832323,-269.76560823,0.00021917,6]
[366497373,1750291832332,-460.0,0.00021917,6]
[366497375,1750291832341,-460.0,0.00021917,6]
[366497377,1750291832351,-237.75251869,0.00021917,6]
[366497379,1750291832361,-527.82,0.00021917,6]
[366497381,1750291832370,-460.0,0.00021917,6]
[366497383,1750291832379,-430.0,0.00021917,6]
[366497385,1750291832388,-480.90206434,0.00021917,6]
[366497387,1750291832398,-635.02,0.00021917,6]
[366497389,1750291832407,-460.0,0.00021917,6]
[366497392,1750291832417,-3438.03,0.00021917,6]
[366497395,1750291832426,-410.0,0.00021917,6]
[366497399,1750291832435,-952.13,0.00021917,6]
[366497402,1750291832444,-430.0,0.00021917,6]
[366497404,1750291832454,-420.0,0.00021917,6]
[366497406,1750291832463,-460.0,0.00021917,6]
[366497408,1750291832472,-460.0,0.00021917,6]
[366497410,1750291832482,-460.0,0.00021917,6]
[366497412,1750291832491,-548.62,0.00021917,6]
[366497414,1750291832501,-839.1,0.00021917,6]
[366497416,1750291832510,-578.7,0.00021917,6]
[366497418,1750291832520,-460.0,0.00021917,6]
[366497420,1750291832530,-460.0,0.00021917,6]
[366497422,1750291832539,-370.0,0.00021917,6]
[366497424,1750291832549,-460.0,0.00021917,6]
[366497426,1750291832559,-460.0,0.00021917,6]
[366497428,1750291832568,-460.0,0.00021917,6]
[366497430,1750291832577,-1170.81,0.00021917,6]
[366497432,1750291832587,-460.0,0.00021917,6]
[366497434,1750291832596,-460.0,0.00021917,6]
[366497436,1750291832606,-460.0,0.00021917,6]
[366497438,1750291832615,-460.0,0.00021917,6]
[366497440,1750291832625,-460.0,0.00021917,6]
[366497442,1750291832635,-460.0,0.00021917,6]
[366497444,1750291832645,-460.0,0.00021917,6]
[366497446,1750291832654,-460.0,0.00021917,6]
[366497448,1750291832664,-430.0,0.00021917,6]
[366497450,1750291832673,-460.0,0.00021917,6]
[366497452,1750291832683,-661.16,0.00021917,6]
[366497454,1750291832692,-1011.94,0.00021917,6]
[366497456,1750291832702,-460.0,0.00021917,6]
[366497458,1750291832711,-460.0,0.00021917,6]
[366497460,1750291832721,-460.0,0.00021917,6]
[366497462,1750291832731,-260.0,0.00021917,6]
[366497464,1750291832741,-460.0,0.00021917,6]
[366497466,1750291832750,-410.0,0.00021917,6]
[366497468,1750291832760,-460.0,0.00021917,6]
[366497470,1750291832769,-440.0,0.00021917,6]
[366497472,1750291832779,-460.0,0.00021917,6]
[366497474,1750291832788,-2114.63,0.00021917,6]
[366497476,1750291832797,-200.0,0.00021917,6]
[366497478,1750291832807,-460.0,0.00021917,6]
[366497480,1750291832816,-963.22,0.00021917,6]
[366497482,1750291832826,-306.09,0.00021917,2]
[366497484,1750291832836,-462.79,0.00021917,6]
[366497486,1750291832845,-460.0,0.00021917,6]
[366497488,1750291832855,-460.0,0.00021917,6]
[366497490,1750291832864,-506.72,0.00021917,6]
[366497492,1750291832875,-390.0,0.00021917,6]
[366497494,1750291832887,-725.5,0.00021917,6]
[366497496,1750291832896,-460.0,0.00021917,6]
[366497498,1750291832906,-674.62,0.00021917,6]
[366497500,1750291832916,-3355.76,0.00021917,6]
[366497502,1750291832927,-1314.74,0.00021917,6]
[366497504,1750291832936,-1031.36,0.00021917,6]
[366497506,1750291832947,-687.74,0.00021917,6]
[366497508,1750291832957,-460.0,0.00021917,6]
[366497509,1750291832967,-460.0,0.00021917,6]
[366497512,1750291832977,-430.0,0.00021917,6]
[366497514,1750291832987,-460.0,0.00021917,6]
[366497516,1750291832997,-320.0,0.00021917,6]
[366497518,1750291833007,-475.24,0.00021917,6]
[366497520,1750291833016,-310.04132638,0.00021952,2]
[366497521,1750291833025,-500.0,0.00021972,6]